Cogmind - Beta 14 @@@ ROGUE MODE // 2024.08.07 @ 20:47:30 Player: Daffa0360 Result: Self-destructed Performance ------------- Evolutions (3) 1500 Regions Visited (5) 1000 Robots Destroyed (68) 340 Value Destroyed (2406) 2406 Prototype IDs (19) 380 Alien Tech Used (0) 0 Bonus (36) 36 TOTAL SCORE: 5662 Bonus ------- High Alert Combat Kills 36 Cogmind --------- Core Integrity 439/700 Matter 173/300 Energy 36/100 System Corruption 4% Temperature Cool (0) Movement Core (300) Ox5 Location -7/Factory Parts ------- > --- POWER (1) -------- (None) > --- PROPULSION (4) --- (None) > --- UTILITY (6) ------ Small Storage Unit Improved Sensor Array Target Analyzer Weapon Cycler System Shield > --- WEAPON (2) ------- Advanced Plasma Rifle Advanced EMP Blaster > --- INVENTORY (8) ---- Improved Terrain Scanner Melee Analysis Suite Transmission Jammer System Shield Dynamic Insulation System Recalibrator Flak Cannon Mining Laser Peak State ------------ > --- POWER ------------ Cooled Ion Engine > --- PROPULSION ------- Flightbrick > --- UTILITY ---------- Small Storage Unit Improved Sensor Array Improved Terrain Scanner Advanced Targeting Computer Weapon Cycler Hacking Suite System Shield Field Recycling Unit > --- WEAPON ----------- Advanced Plasma Rifle Flak Cannon > --- INVENTORY -------- Melee Analysis Suite Transmission Jammer Hardlight Generator System Shield Dynamic Insulation System Recalibrator Advanced EMP Blaster Mining Laser [Rating: 74] Favorites ----------- Power Cooled Ion Engine Engine Cooled Ion Engine Power Core Nuclear Core Propulsion Aluminum Leg Leg Aluminum Leg Hover Unit Gravmag System Flight Unit Flightbrick Utility Small Storage Unit Device Improved Terrain Scanner Storage Small Storage Unit Processor Target Analyzer Hackware Hacking Suite Protection Reflective Plating Weapon Light Cannon Energy Gun Advanced Plasma Rifle Ballistic Gun Minigun Ballistic Cannon Light Cannon Launcher Advanced EMP Blaster Special Weapon Mining Laser Build | -11 -10 -10 -10 -8 -7 ------- Run | Yrd Mat Min Sub Mat Fac Slots Evolved 6 | . . . . 4 2 Power . | . . . . . . Propulsion 2 | . . . . 2 . Utility 4 | . . . . 2 2 Weapon . | . . . . . . Parts Attached 86 | 6 8 9 5 42 16 Power 10 | 1 2 4 . 3 . Engine 7 | 1 1 3 . 2 . Core 3 | . 1 1 . 1 . Reactor . | . . . . . . Propulsion 10 | 2 2 1 2 1 2 Treads . | . . . . . . Leg 7 | 2 2 1 2 . . Wheel . | . . . . . . Hover 2 | . . . . . 2 Flight 1 | . . . . 1 . Utility 25 | 1 2 1 . 14 7 Device 16 | . 1 1 . 11 3 Storage 2 | 1 1 . . . . Processor 2 | . . . . . 2 Hackware 3 | . . . . 1 2 Protection 2 | . . . . 2 . Artifact . | . . . . . . Weapon 41 | 2 2 3 3 24 7 Energy Gun 5 | . 1 . . 3 1 Energy Cannon . | . . . . . . Ballistic Gun 15 | 2 1 2 . 9 1 Ballistic Cannon 9 | . . 1 1 5 2 Launcher 7 | . . . 1 4 2 Special Weapon 5 | . . . 1 3 1 Impact Weapon . | . . . . . . Slashing Weapon . | . . . . . . Piercing Weapon . | . . . . . . Special Melee Weapon . | . . . . . . Unidentified Prototypes 5 | . . . . 5 . Parts Lost 8 | . 1 . . 3 4 Power 2 | . 1 . . . 1 Propulsion 2 | . . . . . 2 Utility 4 | . . . . 3 1 Weapon . | . . . . . . Highest Loss Streak 3 | . 1 . . 3 3 To Critical Strikes . | . . . . . . Average Slot Usage (%) 78 | . 96 100 99 58 73 Engine 4 | . 8 5 . 3 6 Core 5 | . 5 8 14 3 . Leg 11 | . 28 28 27 . . Flight 3 | . . . . 6 4 Device 16 | . 11 14 14 15 22 Storage 9 | . 14 14 14 7 6 Hackware 3 | . . . . 2 10 Protection 1 | . . . . 3 . Energy Gun 3 | . 12 3 . . 3 Ballistic Gun 7 | . 15 14 2 8 2 Ballistic Cannon 6 | . . 10 14 4 5 Special Weapon 1 | . . . 10 1 . Peak Build Rating 74 | 6 10 14 17 62 74 Average Rating 37 | 4 7 11 14 56 59 On Entrance 17 | . 6 7 14 17 61 Naked Turns . | . . . . . . Heaviest Build 38 | 12 14 20 19 34 38 Greatest Support 33 | 20 20 25 25 33 24 Greatest Overweight (x) 12 | . . . 5 1 12 Average Overweight (x) . | . . . . . 1 Largest Inventory Capacity 8 | 8 8 8 8 8 8 Average Capacity 7 | 6 8 8 8 8 8 Most Carried 8 | 4 8 8 8 8 8 Average Carried 7 | 1 5 7 7 7 7 Final Capacity 8 | 8 8 8 8 8 8 Final Carried 8 | 1 7 8 8 8 8 Class Distribution -------------------- 82% | Mutant 15% | Hacker-Mutant Dominant Class ---------------- Mutant | -10/Materials Mutant | -10/Mines Mutant | -10/Subcaves Mutant | -8/Materials Hacker-Mutant | -7/Factory Resources | -11 -10 -10 -10 -8 -7 ----------- Run | Yrd Mat Min Sub Mat Fac Matter Collected 2051 | 196 183 124 94 1115 339 Remotely . | . . . . . . Salvage Created 2508 | . 400 104 76 1106 822 Parts 153 | . 23 15 5 78 32 Haulers Intercepted 6 | . 1 . . 4 1 Recyclers Shooed 1 | . 1 . . . . Parts Field Recycled . | . . . . . . Retrieved Matter . | . . . . . . Parts Self-Destructed 6 | . . . 6 . . Prevented . | . . . . . . Kills | -11 -10 -10 -10 -8 -7 ------- Run | Yrd Mat Min Sub Mat Fac Combat Hostiles Destroyed 50 | . 7 5 2 21 15 Guns 27 | . 7 5 . 12 3 Cannons 8 | . . . . 4 4 AOE 14 | . . . 2 4 8 Classes Destroyed 15 | . 5 1 1 5 3 Worker 1 | . . . . 1 . Builder 1 | . . . . 1 . Tunneler 3 | . 1 2 . . . Hauler 6 | . 1 . . 4 1 Recycler 2 | . . . . . 2 Operator 2 | . 1 . . . 1 Watcher 3 | . 1 . . 1 1 Swarmer 6 | . . 5 . 1 . Grunt 25 | . 7 . . 8 10 Duelist 1 | . . . . . 1 Sentry 11 | . . . . 8 3 Hunter 3 | . . . . 3 . Programmer 1 | . . . . . 1 Heavy 1 | . . . . 1 . Subdweller 2 | . . . 2 . . Best Kill Streak 7 | . 3 3 2 7 6 Combat Bots Only 6 | . 2 3 2 6 4 Max Kills in Single Turn 5 | . 1 2 2 2 5 Gunslinging 1 | . . 1 . . . Exploded 3 | . . . 2 2 3 Melee . | . . . . . . Uniques/NPCs Destroyed . | . . . . . . Combat | -11 -10 -10 -10 -8 -7 -------- Run | Yrd Mat Min Sub Mat Fac Hostile Shots Fired 352 | . 35 23 7 155 132 Missed 117 | . 7 12 4 48 46 Damage Taken 3489 | . 352 130 72 1822 1113 Core 512 | . 37 19 . 195 261 Absorbed by Shields 196 | . . . . 188 8 Ignored by Resistances 24 | . . . . 24 . Regen/Repaired (Parts) 89 | . . . . 73 16 Core Remaining (%) 80 | 100 . . 77 64 . Volleys Fired 221 | . 43 10 24 106 38 Largest 2 | . 2 2 2 2 2 Hottest 135 | . 70 70 100 135 132 Shots Fired 385 | . 86 20 27 188 64 Gun 243 | . 86 16 2 107 32 Cannon 101 | . . 4 7 64 26 Launcher 17 | . . . 1 11 5 Special 24 | . . . 17 6 1 Kinetic 274 | . 44 14 9 171 36 Thermal 94 | . 42 6 17 6 23 Explosive 7 | . . . 1 6 . Electromagnetic 10 | . . . . 5 5 Robot Hit Streak 13 | . 6 9 4 8 13 Robot Miss Streak 12 | . 3 2 1 12 8 Penetration Max 1 | . . . . 1 . Secondary Targets 4 | . 1 3 . . . Max Gunslinging Chain 1 | . 1 1 . . . Shots Hit Robots 234 | . 65 13 7 103 46 Core Hits 158 | . 24 7 4 64 59 Critical Kills . | . . . . . . Critical Parts Destroyed 1 | . 1 . . . . Critical Strikes 7 | . 4 1 . 2 . Burn 4 | . 3 1 . . . Destroy 1 | . 1 . . . . Blast 2 | . . . . 2 . Melee Attacks . | . . . . . . Impact . | . . . . . . Slashing . | . . . . . . Piercing . | . . . . . . Sneak Attacks . | . . . . . . Combat Hostiles . | . . . . . . Follow-up Attacks . | . . . . . . Damage Inflicted 6488 | . 660 166 378 2543 2741 Guns 2508 | . 660 115 15 1160 558 Cannons 1260 | . . 51 89 645 475 Explosions 2707 | . . . 274 738 1695 Melee . | . . . . . . Ramming 13 | . . . . . 13 Kinetic 2866 | . 237 103 104 1805 617 Thermal 1949 | . 423 63 . 52 1411 Explosive 632 | . . . 274 358 . Electromagnetic 1028 | . . . . 328 700 Impact . | . . . . . . Slashing . | . . . . . . Piercing . | . . . . . . Highest Corruption 4 | . . . . . 4 Average Corruption 4 | . . . . . 4 Corruption Purged . | . . . . . . Corruption Blocked . | . . . . . . Effects 1 | . . . . . 1 Energy Discharges 1 | . . . . . 1 Overload Shots . | . . . . . . Overflow Damage 246 | . . . . 29 217 Projectiles . | . . . . . . Explosions 246 | . . . . 29 217 Melee . | . . . . . . Knockbacks 23 | . . . 2 15 6 Impact . | . . . . . . Kinetic 22 | . . . 2 15 5 Secondary 1 | . . . . . 1 Self-Inflicted Damage 190 | . . . . . 190 Shots 6 | . . . . . 6 Rammed 1 | . . . . . 1 Targets Rammed 1 | . . . . . 1 Kicked . | . . . . . . Crushed . | . . . . . . Highest Temperature 511 | . 331 70 . 250 511 Average Temperature 91 | . 103 33 . 68 136 Received Heat Transfer 1006 | . 222 . . 453 331 Effects 8 | . 2 . . . 6 Shutdowns 1 | . . . . . 1 Energy Bleed 4 | . 2 . . . 2 Damage (major) 3 | . . . . . 3 Siege Activations . | . . . . . . Robots Corrupted 1 | . . . . 1 . Combat Hostiles 1 | . . . . 1 . Parts Fried 3 | . . . . 2 1 Impact Corruptions . | . . . . . . Robots Melted . | . . . . . . Combat Hostiles . | . . . . . . Parts Melted 4 | . 2 2 . . . Heat Transferred 3189 | . 1480 259 . 100 1350 Parts Sabotaged . | . . . . . . Parts Stolen . | . . . . . . Parts Stripped . | . . . . . . Power Chain Reactions 1 | . . . . 1 . Alert | -11 -10 -10 -10 -8 -7 ------- Run | Yrd Mat Min Sub Mat Fac Peak Influence 521 | . 191 136 . 383 521 Initial 159 | . . 16 . . 159 Average 124 | . 75 55 . 117 212 Maximum Alert Level 2 | . . . . 1 2 Low Security (%) 80 | 100 100 100 . 75 64 Level 1 19 | . . . . 24 35 Level 2 . | . . . . . . Level 3 . | . . . . . . Level 4 . | . . . . . . Level 5 . | . . . . . . High Security . | . . . . . . Max Security . | . . . . . . Squads Dispatched 9 | . 1 . . 4 4 Investigation 2 | . . . . 1 1 Extermination 1 | . . . . . 1 Reinforcement 5 | . 1 . . 3 1 Assault . | . . . . . . Garrison 1 | . . . . . 1 Intercept . | . . . . . . Searches Triggered . | . . . . . . Construction Impeded 2 | . . . . 2 . Haulers Reinforced 1 | . . . . . 1 Active Scanning Responses . | . . . . . . Cargo Convoy Interrupts . | . . . . . . Stealth | -11 -10 -10 -10 -8 -7 --------- Run | Yrd Mat Min Sub Mat Fac Distress Signals 4 | . 2 . . 1 1 Communications Jammed . | . . . . . . Distress Signals . | . . . . . . Times Spotted 82 | . 12 6 9 32 23 Peak Tracking Total 7 | . 4 3 6 5 7 Tactical Retreats 7 | . 1 . . 3 3 Traps | -11 -10 -10 -10 -8 -7 ------- Run | Yrd Mat Min Sub Mat Fac Traps Triggered 2 | . . 1 . . 1 Indirectly 1 | . . . . . 1 Trap Hack Attempts . | . . . . . . Triggered . | . . . . . . Disarmed 4 | . . . . 4 . Reprogrammed . | . . . . . . Reused . | . . . . . . Traps Extracted . | . . . . . . Installed . | . . . . . . Triggered 1 | . . . . . 1 Machines | -11 -10 -10 -10 -8 -7 ---------- Run | Yrd Mat Min Sub Mat Fac Machines Disabled 15 | . . . 1 4 10 Max in Single Turn 6 | . . . 1 1 6 Machines Repaired . | . . . . . . Machines Dismantled . | . . . . . . Machines Sabotaged . | . . . . . . Overloaded Fab Kills . | . . . . . . Hacking | -11 -10 -10 -10 -8 -7 --------- Run | Yrd Mat Min Sub Mat Fac Machines Accessed 17 | . 4 1 1 8 3 Terminals 10 | . 4 . . 6 . Fabricators 1 | . . . . . 1 Repair Stations 2 | . . . . 1 1 Recycling Units 1 | . . . . . 1 Scanalyzers 1 | . . . . 1 . Garrison Access . | . . . . . . Total Hacks 48 | . 9 1 1 30 7 Successful 29 | . 6 1 1 17 4 Failed 19 | . 3 . . 13 3 Catastrophic 4 | . 1 . . 3 . Database Lockouts . | . . . . . . Manual 2 | . . . . 2 . Terminals 29 | . 9 . . 20 . Fabricators 2 | . . . . . 2 Repair Stations 6 | . . . . 3 3 Recycling Units 2 | . . . . . 2 Scanalyzers 7 | . . . . 7 . Garrison Access . | . . . . . . Terminal Hacks 17 | . 6 1 1 9 . Record 2 | . 1 . . 1 . Prototype ID Bank 1 | . 1 . . . . Open Door 1 | . . 1 . . . Alert Level 3 | . 1 . . 2 . Unreport Threat 1 | . . . . 1 . Locate Traps 3 | . 1 . . 2 . Disarm Traps 1 | . . . . 1 . Dispatch Records 2 | . 2 . . . . Security Status 1 | . . . . 1 . Patrol Status 1 | . . . . 1 . Derelict Proto ID Bank 1 | . . . 1 . . Fabricator Hacks 1 | . . . . . 1 Build 1 | . . . . . 1 Repair Station Hacks 4 | . . . . 2 2 Scan Component 2 | . . . . 1 1 Repair 2 | . . . . 1 1 Recycling Unit Hacks 1 | . . . . . 1 Report Inventory 1 | . . . . . 1 Scanalyzer 6 | . . . . 6 . Insert Component 3 | . . . . 3 . Analyze 3 | . . . . 3 . Garrison Access Hacks . | . . . . . . Unauthorized Hacks . | . . . . . . Terminals . | . . . . . . Fabricators . | . . . . . . Repair Stations . | . . . . . . Recycling Units . | . . . . . . Scanalyzers . | . . . . . . Garrison Access . | . . . . . . Data Cores Recovered 1 | . . . . . 1 Used . | . . . . . . Hacking Detections 11 | . 3 . . 6 2 Full Trace Events 1 | . . . . 1 . Feedback Events . | . . . . . . Feedback Blocked . | . . . . . . Robot Schematics Acquired . | . . . . . . Robots Built . | . . . . . . Authchips . | . . . . . . Time . | . . . . . . Total Robot Build Rating . | . . . . . . Part Schematics Acquired 3 | . . . . 3 . Parts Built 1 | . . . . . 1 Authchips . | . . . . . . Time 187 | . . . . . 187 Total Part Build Rating 7 | . . . . . 7 Parts Repaired 2 | . . . . 1 1 Time 57 | . . . . 38 19 Parts Recycled . | . . . . . . Recycled Matter . | . . . . . . Retrieved Matter . | . . . . . . Retrieved Components . | . . . . . . Parts Scanalyzed 3 | . . . . 3 . Part Schematics Acquired 3 | . . . . 3 . Parts Damaged 1 | . . . . 1 . Bothacking | -11 -10 -10 -10 -8 -7 ------------ Run | Yrd Mat Min Sub Mat Fac Used RIF Installer . | . . . . . . Robots Hacked . | . . . . . . Non-combat . | . . . . . . Combat . | . . . . . . Robot Hacks Applied . | . . . . . . Relay Couplers Released . | . . . . . . Fabnet Peak Effective % . | . . . . . . Robots Rewired . | . . . . . . Allies Hacked . | . . . . . . Hacks Repelled . | . . . . . . Allies | -11 -10 -10 -10 -8 -7 -------- Run | Yrd Mat Min Sub Mat Fac Total Allies . | . . . . . . Largest Group . | . . . . . . Highest-Rated Group . | . . . . . . Highest-Rated Ally . | . . . . . . Total Orders . | . . . . . . Ally Attacks . | . . . . . . Total Damage . | . . . . . . Kills . | . . . . . . Allies Corrupted . | . . . . . . Allies Melted . | . . . . . . Intel | -11 -10 -10 -10 -8 -7 ------- Run | Yrd Mat Min Sub Mat Fac Robot Analysis Total . | . . . . . . Derelict Logs Recovered 3 | . . 1 2 . . Drone Launches . | . . . . . . Drone Recoveries . | . . . . . . Exploration | -11 -10 -10 -10 -8 -7 ------------- Run | Yrd Mat Min Sub Mat Fac Turns Passed 5115 | 66 612 845 664 1700 1228 Spaces Moved 3378 | 48 322 495 427 1332 754 Core 16 | 6 . . 3 . 7 Treads . | . . . . . . Legs 1283 | 42 322 495 424 . . Wheels . | . . . . . . Hover 180 | . . . . . 180 Flight 1899 | . . . . 1332 567 Fastest Speed 40 | 50 120 120 120 40 56 Average Speed 84 | 111 120 120 121 45 93 Slowest Speed 650 | 120 120 120 300 80 650 Overloaded Moves . | . . . . . . Propulsion Burnouts . | . . . . . . Robots Hopped 1 | . . . . 1 . Cave-ins Triggered . | . . . . . . Exploration Rate (%) 46 | 4 63 97 25 72 19 Regions Visited 5 Branch Regions 2 Pre-discovered Areas . | . . . . . . Known Exits Taken 1 | . . . . 1 . Unknown Exits Taken 4 | 1 1 1 1 . . Scrap Searched 5 | . . 2 3 . . Spaces Dug 5 | . . . . 5 . Terrain Destroyed 133 | . . . 3 64 66 Melee . | . . . . . . Projectile 12 | . . . . 9 3 AOE 121 | . . . 3 55 63 Terrain Rammed . | . . . . . . Walls Destroyed . | . . . . . . Machines Disabled . | . . . . . . Actions | -11 -10 -10 -10 -8 -7 --------- Run | Yrd Mat Min Sub Mat Fac Total 5241 | 60 471 728 514 2253 1215 Wait 1448 | . 79 199 45 723 402 Move 3371 | 47 321 494 426 1329 754 Hop 1 | . . . . 1 . Pick Up 57 | 7 14 7 5 23 1 Fast Attach 21 | . . . 1 13 7 Attach 19 | 6 2 . 1 10 . Detach 2 | . . . . 2 . Swap 46 | . 6 9 3 19 9 Drop 54 | . 6 9 9 27 3 Fire 221 | . 43 10 24 106 38 Melee . | . . . . . . Ram 1 | . . . . . 1 Kick . | . . . . . . Crush . | . . . . . . Escape Stasis . | . . . . . . Rewire . | . . . . . . Trap . | . . . . . . Miscellaneous . | . . . . . . Route ------- -11/Scrapyard -10/Materials (discovered 4 exits: [*Mat x3] / *Min) -10/Mines (discovered 3 exits: [*Mat x2] / *Sub) -10/Subcaves (discovered 3 exits: *Mat x2 / Rec) -8/Materials (discovered 3 exits: *Fac x3) -7/Factory History --------- Turn | Location | Event 20 | -11/Scrapyard | Discovered new exit (range 15) 67 | -11/Scrapyard | Entered Materials 300 | -10/Materials | Build established: Mutant 350 | -10/Materials | Discovered new exit (range 10) 434 | -10/Materials | Discovered new exit (range 5) 473 | -10/Materials | Discovered new exit (range 16) 638 | -10/Materials | Discovered new exit (range 16) 679 | -10/Materials | Entered Mines 872 | -10/Mines | Found DCF Scrap (13 items) 904 | -10/Mines | Discovered new exit (range 11) 981 | -10/Mines | Met a Derelict who couldn't figure out how to use a Trap Extractor 1248 | -10/Mines | Discovered new exit (range 12) 1511 | -10/Mines | Discovered new exit (range 6) 1524 | -10/Mines | Entered Subcaves 1584 | -10/Subcaves | Learned location of 1 exit from Materials 1619 | -10/Subcaves | Discovered new exit (range 14) 1629 | -10/Subcaves | Ambushed by swarm of Subdwellers 1669 | -10/Subcaves | Shifting Twisted Machinery released Mak. Light Armor Plating 1738 | -10/Subcaves | Shifting Twisted Machinery released Sub. Optics 1967 | -10/Subcaves | Identified exit to Recycling 2067 | -10/Subcaves | Visited 4L-MR0's lab 2106 | -10/Subcaves | Found Flightbrick 2173 | -10/Subcaves | Discovered new exit (range 13) 2188 | -10/Subcaves | Entered Materials 2188 | -8/Materials | Evolved 4 slots: Propulsion x2, Utility x2 2189 | -8/Materials | Identified exit to Factory 2191 | -8/Materials | Attached Flightbrick, gained temporary slots: Utility x3 2448 | -8/Materials | Discovered exit to Factory (range 12) 2915 | -8/Materials | Repaired Reflective Plating 3070 | -8/Materials | Lost 3 parts (3u) 3567 | -8/Materials | Discovered exit to Factory (range 4) 3888 | -8/Materials | Entered Factory 3888 | -7/Factory | Evolved 2 slots: Utility x2 4361 | -7/Factory | Fabricated Adv. Plasma Rifle (x1) 4440 | -7/Factory | Build established: Hacker-Mutant 4636 | -7/Factory | Repaired Imp. Terrain Scanner 5022 | -7/Factory | Garrison activated, responded to threat 5116 | -7/Factory | Self-destructed Last Messages --------------- 05082_ Destroyed Imp. Deuterium Engine. 05082_ Fusion Modulator explodes. 05082_ G-47 Trooper destroyed. 05082_ Fusion Modulator explodes. 05082_ Y-54 Guardian destroyed. 05082_ Cld. Ion Engine destroyed. 05082_ Destroyed Cld. Ion Engine. 05082_ R-06 Scavenger destroyed. 05082_ Destroyed Lgt. Ion Engine. 05082_ Destroyed Com. Wheel. 05082_ R-06 Scavenger destroyed. 05085_ L-41 Fighter destroyed. 05088_ Gravmag System destroyed. 05094_ K-01 Serf collects debris. 05098_ Slammed into U-05 Engineer. 05098_ Gravmag System destroyed. 05098_ System corrupted by crushing effect (+4). 05103_ System corrupted: Energy discharge (-4). 05103_ ALERT: Cargo convoy en route, clear transfer corridor. Map ----- +----------------------------------------------------+ | + #??# #????# #????????????# | | # #??# ##?#?# ############## | | # ########+########## # # | | # # ! #""" # | | ##+#+##########+##### # #""" # | | # ### # #"S """" # " | | #| """ #?# + #""" """" # " | | """ """ # """ #?# # # "" """" + " | | """ """ # """ ### ###### """" # | | """ """ # + + """" # | | "" # ! ####### ### """" # [ | | "" ########?????# #?# # | | ? ? ###????#?????# ### # # | | ! ?##?????????### #?# # + | | ??? ???????##?????# #?#######+###### # | | ??? ? ??????#????#?# #???????# #????# # | | ??? ?????????????#?# ######### ##??## # | | ???#####?#?#???########## ## # #?#??# # | | ????????#??????# # ##""" # ##?#?# ### | | ?????#?????????# """ # ##""" # ###### #?# | | ??????#???#????# """ # ##""" + ### | | ????#???#??????# """ # ## # ##########?# | | ???????????????# ! + ## # #????????#?# | | ?????????????#?# """# ######### ###????????# | | ??????##???#???# Y"# ####### #????????# | | ???????????????# """#@ ##???????# | | ????#??????????# # #??#?????? | | ???????????????########## r #????????? | | ????????????????????????## ######## #???????? | | ?????#??##???????????????# #?#???#?######????????? | | ???????????????#???????#?# #?#?????#???#?#?? ????? | | ???????????#???##????????# #?#????????????????"??? | | ????????????????????????##g#?????#?#?????????????? | | ??????????????????######## ##????###?????????????? | | ??????????????#?###"""" """;###?????????#??? ????? | | ????????????????# ; #????????????#?????? | | ????????????????# ? ; #??????????#???????? | | ????????#??????#" !%[ ; #??????????????????? | | ????????????? ?#" ! #??????????????????? | | ???????????????#" #??????????????????? | | ???????????????# % #?????????????????? | | ???????????????# ##?????????????????? | | ???????????????#" #??????? #????????? | | ???????????????#" ##### #????????? | | ???????????????# ! #????????? | | ???????????????#" * #????????? | | ???????????????#" % #????????? | | ???????????????#" [ ^ #????????? | | ???????????????#" #????????? | | ????????????????# " ###+####????????? | +----------------------------------------------------+ Best States ------------- Heat Dissipation 34 Energy Generation 18 Energy Capacity 280 Matter Stores 300 Matter Capacity 300 Sight Range 16 Robot Scan Range 15 Terrain Scan Range 16 Terrain Scan Density 10 Additional Mass Support 9 EM Shielding 2 Armor Coverage 150 Resistance: TH 10 Weapon Cycling 15 Evasion (%) 62 Targeting Accuracy 8 Target Analysis 5 Offensive Hacking 10 Defensive Hacking 10 Item Schematics ----------------- Melee Analysis Suite | -8/Materials | Scanalyzed Transmission Jammer | -8/Materials | Scanalyzed Cryofiber Web | -8/Materials | Scanalyzed Robot Schematics ------------------ None Fabricated ------------ Adv. Plasma Rifle | x1 | -7/Factory | Preloaded Alien Tech Used ----------------- None Achievements -------------- None Challenges ------------ None Game ------ Seed ChromaticFissionBox Manual? 0 Play Time 00:51:25 Cumulative 27.0 hours Start 2024.08.07 @ 19:45:28 End 2024.08.07 @ 20:47:30 Sessions 3 Manual Loads 0 Difficulty Rogue Special Mode None Game No. 45 Rogue 41 Adventurer 4 Explorer 0 Win Type - Total 0 Types 0/0/0/0/0/0/0/0/0 Lore% 7 Gallery% 25 Achievement% 17 Wizard Run 0 Options --------- Layout 1 ASCII 0 Keyboard 0 Movement Mouse Keybinds 0 Fullscreen 2 Font 24/Smallcaps Map View 50x35 Zoom Use 0% Tactical HUD 1 Map Filters NONE Filters NONE Steam 1 RUN: eaf8910a-6f6e-4fe6-9b87-36733023d7d5